Cogmind - Beta 14 @@@ ROGUE MODE // 2024.10.15 @ 20:09:55 Player: saltine Result: Destroyed by C6-CZH(g) with Salvaging Laser Performance ------------- Evolutions (3) 1500 Regions Visited (12) 2400 Robots Destroyed (123) 615 Value Destroyed (3745) 3745 Prototype IDs (37) 740 Alien Tech Used (0) 0 Bonus (984) 984 TOTAL SCORE: 9984 Bonus ------- High Alert Combat Kills 471 Follower Combat Kills 198 Entered Garrisons 200 Aligned with FarCom 300 Friendly Fire -185 Cogmind --------- Core Integrity 0/700 Matter 220/300 Energy 100/100 System Corruption 0% Temperature Cool (6) Movement Core (1350) Ox26 Location -7/Scraptown Parts ------- > --- POWER (1) -------- (None) > --- PROPULSION (3) --- (None) > --- UTILITY (6) ------ Huge Storage Unit > --- WEAPON (3) ------- (None) > --- INVENTORY (25) --- Fission Core Light Treads Light Treads Light Treads Light Treads Improved Treads Medium Matter Pod (69) Enhanced Optical Array Experimental Sensor Array Matter Filter Improved Light Armor Plating Heavy Laser Gatling Laser Gatling Laser AWS/Thermal XL Autogun Array Assault Cannon Peak State ------------ > --- POWER ------------ Micro Nuclear Core > --- PROPULSION ------- Light Treads Light Treads Light Treads > --- UTILITY ---------- Cryofiber Web Cooling System Huge Storage Unit Hardened Medium Armor Plating Improved Medium Armor Plating Remote Shield > --- WEAPON ----------- AWS/Thermal Makeshift Axe > --- INVENTORY -------- Fission Core Light Treads Light Treads Light Treads Light Treads Energy Well Experimental Sensor Array Seismic Detector Matter Filter Improved Light Armor Plating Heavy Laser Gatling Laser Gatling Laser YOLO Cannon XL Autogun Array Assault Cannon Assault Cannon Rocket Array Rocket Array Rocket Array CPS Tube [Rating: 57] Favorites ----------- Power Micro Nuclear Core Engine Improved Ion Engine Power Core Micro Nuclear Core Propulsion Light Treads Treads Light Treads Leg Aluminum Leg Utility Light Armor Plating Device Seismic Detector Storage Huge Storage Unit Processor Target Analyzer Hackware Hacking Suite Protection Light Armor Plating Weapon Improved EM Shotgun Energy Gun Improved EM Shotgun Energy Cannon YOLO Cannon Ballistic Gun Enhanced Autogun Ballistic Cannon Assault Cannon Launcher Mini Grenade Launcher Special Weapon CPS Tube Slashing Weapon Makeshift Axe Build | -11 -10 -10 -9 -9 -9 -8 -8 -8 -7 -7 -7 -7 ------- Run | Yrd Mat Min Mat Min Exi Min Mat Gar Fac Sto Rec Scr Slots Evolved 6 | . . . 2 . . . 2 . 2 . . . Power . | . . . . . . . . . . . . . Propulsion 1 | . . . . . . . 1 . . . . . Utility 4 | . . . 2 . . . . . 2 . . . Weapon 1 | . . . . . . . 1 . . . . . Parts Attached 97 | 1 10 6 10 4 3 1 5 21 10 6 . 20 Power 6 | . 1 . 1 1 . . . 2 . . . 1 Engine 4 | . 1 . 1 1 . . . 1 . . . . Core 2 | . . . . . . . . 1 . . . 1 Reactor . | . . . . . . . . . . . . . Propulsion 17 | . . 3 3 1 . . 1 7 1 . . 1 Treads 14 | . . . 3 1 . . 1 7 1 . . 1 Leg 3 | . . 3 . . . . . . . . . . Wheel . | . . . . . . . . . . . . . Hover . | . . . . . . . . . . . . . Flight . | . . . . . . . . . . . . . Utility 35 | 1 4 3 3 2 1 1 2 4 4 . . 10 Device 12 | 1 2 2 2 . . . . . 1 . . 4 Storage 4 | . 1 . . 1 1 . 1 . . . . . Processor 2 | . . . . . . . . 1 . . . 1 Hackware 2 | . . . . . . . . . 2 . . . Protection 15 | . 1 1 1 1 . 1 1 3 1 . . 5 Artifact . | . . . . . . . . . . . . . Weapon 39 | . 5 . 3 . 2 . 2 8 5 6 . 8 Energy Gun 16 | . 3 . 3 . 2 . 2 3 . 3 . . Energy Cannon 3 | . . . . . . . . 2 . . . 1 Ballistic Gun 1 | . . . . . . . . . . . . 1 Ballistic Cannon 3 | . 1 . . . . . . . 1 1 . . Launcher 8 | . . . . . . . . 2 2 1 . 3 Special Weapon 2 | . 1 . . . . . . . . . . 1 Impact Weapon . | . . . . . . . . . . . . . Slashing Weapon 6 | . . . . . . . . 1 2 1 . 2 Piercing Weapon . | . . . . . . . . . . . . . Special Melee Weapon . | . . . . . . . . . . . . . Unidentified Prototypes 2 | . . . . . . . . . . 1 . 1 Corrupted Parts 3 | . . . . . . . . 2 . . . 1 System Corruption 14 | . . . . . . . . 7 . . . 7 Parts Lost 44 | . 3 1 4 . . . 1 19 2 . . 14 Power 4 | . 1 . . . . . . 2 . . . 1 Propulsion 13 | . . 1 1 . . . . 7 1 . . 3 Utility 13 | . 1 . 1 . . . . 5 1 . . 5 Weapon 14 | . 1 . 2 . . . 1 5 . . . 5 Highest Loss Streak 14 | . 2 1 2 . . . 1 12 2 . . 14 To Critical Strikes 1 | . . . . . . . . . . . . 1 Average Slot Usage (%) 91 | . 97 100 97 100 81 100 98 80 86 92 92 91 Engine 5 | . 13 14 11 11 11 11 9 3 . . . . Core 3 | . . . . . . . . 5 7 7 7 6 Treads 19 | . . . 18 22 22 22 26 26 23 23 23 22 Leg 4 | . 28 28 3 . . . . . . . . . Device 11 | . 12 13 20 22 22 11 9 3 2 7 7 10 Storage 9 | . 14 14 11 11 11 11 9 9 7 7 7 7 Hackware 4 | . . . . . . . . . 13 15 15 9 Protection 12 | . . . 10 11 11 21 17 10 14 15 15 17 Energy Gun 14 | . 23 28 21 22 4 22 26 15 7 10 7 5 Slashing Weapon 2 | . . . . . . . . . 5 1 7 5 Peak Build Rating 57 | 7 11 14 18 18 26 26 30 41 51 53 52 57 Average Rating 33 | 6 9 12 16 17 15 26 29 32 48 50 52 53 On Entrance 26 | 6 7 11 14 17 18 26 26 30 41 50 52 52 Naked Turns . | . . . . . . . . . . . . . Heaviest Build 126 | 11 32 30 39 41 61 63 106 106 110 112 108 126 Greatest Support 63 | 20 20 30 40 40 40 40 60 63 60 60 60 60 Greatest Overweight (x) 2 | . 1 2 1 1 1 1 1 1 1 1 1 2 Average Overweight (x) . | . . . . . . 1 1 1 1 1 1 1 Largest Inventory Capacity 25 | 8 15 15 15 15 20 20 25 25 25 25 25 25 Average Capacity 21 | 8 14 15 15 15 17 20 23 25 25 25 25 25 Most Carried 25 | 6 15 15 15 15 20 20 25 25 25 25 25 25 Average Carried 19 | 6 12 14 14 14 16 20 21 19 24 24 25 24 Final Capacity 25 | 8 15 15 15 15 20 20 25 25 25 25 25 25 Final Carried 25 | 6 15 15 15 15 20 20 25 21 25 25 25 21 Class Distribution -------------------- 38% | Mutant 32% | Scavenger-Mutant 10% | Scavenger-Tank 7% | Derelict-Mutant 6% | Tank 4% | Scavenger-Skirmisher Dominant Class ---------------- Mutant | -10/Materials Mutant | -10/Mines Mutant | -9/Materials Mutant | -9/Mines Derelict-Mutant | -9/Exiles Mutant | -8/Mines Tank | -8/Materials Scavenger-Skirmisher | -8/Garrison Scavenger-Mutant | -7/Factory Scavenger-Tank | -7/Storage Scavenger-Mutant | -7/Recycling Scavenger-Mutant | -7/Scraptown Resources | -11 -10 -10 -9 -9 -9 -8 -8 -8 -7 -7 -7 -7 ----------- Run | Yrd Mat Min Mat Min Exi Min Mat Gar Fac Sto Rec Scr Matter Collected 1394 | 210 81 46 105 88 . 54 58 276 119 68 . 289 Remotely . | . . . . . . . . . . . . . Salvage Created 4715 | 61 524 151 966 149 . . 778 871 615 354 . 246 Parts 270 | 4 31 9 54 11 . . 43 39 36 16 . 27 Haulers Intercepted 10 | . 1 . 5 . . . 1 . . 3 . . Recyclers Shooed 5 | . 5 . . . . . . . . . . . Parts Field Recycled . | . . . . . . . . . . . . . Retrieved Matter . | . . . . . . . . . . . . . Parts Self-Destructed . | . . . . . . . . . . . . . Prevented . | . . . . . . . . . . . . . Kills | -11 -10 -10 -9 -9 -9 -8 -8 -8 -7 -7 -7 -7 ------- Run | Yrd Mat Min Mat Min Exi Min Mat Gar Fac Sto Rec Scr Combat Hostiles Destroyed 94 | . 9 3 19 3 . . 15 27 11 3 . 4 Melee 1 | . . . . . . . . . 1 . . . Guns 52 | . 9 3 12 3 . . 8 8 6 3 . . Cannons 1 | . . . . . . . . 1 . . . . AOE 38 | . . . 6 . . . 7 17 4 . . 4 Classes Destroyed 18 | 2 5 . 2 1 . . 3 1 . 1 . 3 Worker 3 | . . . . . . . 1 . 2 . . . Builder 2 | . 1 . . . . . 1 . . . . . Tunneler 4 | 1 1 . 1 1 . . . . . . . . Hauler 10 | . 1 . 5 . . . 1 . . 3 . . Recycler 3 | 1 . . . . . . . . 1 1 . . Operator 2 | . 1 . 1 . . . . . . . . . Watcher 5 | . 1 . 1 . . . . . 3 . . . Swarmer 24 | . . . 10 . . . 3 8 3 . . . Grunt 44 | . 9 3 6 2 . . 7 10 6 1 . . Brawler 1 | . . . . . . . 1 . . . . . Duelist 3 | . . . . . . . 1 2 . . . . Sentry 12 | . . . 3 . . . 3 4 1 1 . . Hunter 1 | . . . . . . . . . . 1 . . Programmer 4 | . . . . . . . . 3 1 . . . Federalist 1 | . . . . . . . . . . . . 1 Explorer 1 | . . . . . . . . . . . . 1 Scrapper 1 | . . . . . . . . . . . . 1 Assembled 1 | . . . . 1 . . . . . . . . Thug 1 | . . . 1 . . . . . . . . . Best Kill Streak 11 | 2 2 2 5 3 . . 11 7 7 3 . 3 Combat Bots Only 9 | . 2 2 4 2 . . 9 7 7 1 . 3 Max Kills in Single Turn 4 | 1 2 1 4 2 . . 4 4 3 1 . 1 Gunslinging 1 | . . . 1 . . . . . . . . . Exploded 4 | . . . 3 . . . 2 4 3 . . 1 Melee 1 | . . . . . . . . . 1 . . . Uniques/NPCs Destroyed 1 | . . . . . . . . . . . . 1 Triborg (-7/Scraptown) Combat | -11 -10 -10 -9 -9 -9 -8 -8 -8 -7 -7 -7 -7 -------- Run | Yrd Mat Min Mat Min Exi Min Mat Gar Fac Sto Rec Scr Hostile Shots Fired 474 | . 37 11 62 5 . . 25 192 41 21 . 80 Missed 139 | . 9 1 19 2 . . 10 58 16 9 . 15 Damage Taken 6418 | . 401 163 592 42 . 7 386 2029 336 159 . 2303 Core 1169 | . 39 41 61 . . . 13 306 27 18 . 664 Absorbed by Shields . | . . . . . . . . . . . . . Regen/Repaired (Parts) 59 | . . . 59 . . . . . . . . . Core Remaining (%) 73 | 100 . 68 . . . 84 . 42 . . . . Volleys Fired 208 | 6 46 8 48 5 . 1 20 34 3 22 . 15 Largest 3 | 2 2 2 2 2 . 2 3 3 1 1 . 1 Hottest 135 | 80 100 90 90 90 . 90 135 135 30 80 . 100 Shots Fired 434 | 12 83 16 80 7 . 2 59 88 36 36 . 15 Gun 398 | 12 79 16 80 7 . 2 59 76 33 34 . . Cannon 13 | . . . . . . . . 4 . 2 . 7 Launcher 18 | . . . . . . . . 8 3 . . 7 Special 5 | . 4 . . . . . . . . . . 1 Kinetic 2 | . . . . . . . . . . 2 . . Thermal 150 | 12 34 . . . . . . 30 33 34 . 7 Explosive 18 | . . . . . . . . 8 3 . . 7 Electromagnetic 263 | . 49 16 80 7 . 2 59 50 . . . . Robot Hit Streak 31 | 3 9 3 9 3 . 3 11 27 31 10 . 15 Robot Miss Streak 7 | 1 5 1 7 1 . 1 3 2 3 3 . 2 Penetration Max . | . . . . . . . . . . . . . Secondary Targets 7 | . . . 2 . . . 1 4 . . . . Max Gunslinging Chain 1 | . . . 1 . . . 1 1 . . . . Autonomous 70 | . . . . . . . . 23 33 14 . . Shots Hit Robots 294 | 7 43 10 57 4 . 2 40 52 37 27 . 15 Core Hits 193 | 3 21 5 32 6 . . 35 41 23 10 . 17 Critical Kills . | . . . . . . . . . . . . . Critical Parts Destroyed . | . . . . . . . . . . . . . Critical Strikes 2 | . 2 . . . . . . . . . . . Corrupt 2 | . 2 . . . . . . . . . . . Melee Attacks 16 | . . . . . . . . 2 12 2 . . Impact . | . . . . . . . . . . . . . Slashing 16 | . . . . . . . . 2 12 2 . . Piercing . | . . . . . . . . . . . . . Sneak Attacks 3 | . . . . . . . . . 3 . . . Combat Hostiles . | . . . . . . . . . . . . . Follow-up Attacks . | . . . . . . . . . . . . . Damage Inflicted 10908 | 72 808 236 1578 71 . 22 1105 2676 1645 676 . 2019 Guns 5068 | 72 642 162 868 66 . 22 668 1014 878 676 . . Cannons 1011 | . . . . . . . . 228 . . . 783 Explosions 4435 | . 124 68 710 . . . 429 1434 434 . . 1236 Melee 333 | . . . . . . . . . 333 . . . Ramming 61 | . 42 6 . 5 . . 8 . . . . . Kinetic . | . . . . . . . . . . . . . Thermal 5737 | 72 312 68 459 . . . 429 1460 878 676 . 1383 Explosive 2194 | . . . 251 . . . . 873 434 . . 636 Electromagnetic 2583 | . 454 162 868 66 . 22 668 343 . . . . Impact . | . . . . . . . . . . . . . Slashing 333 | . . . . . . . . . 333 . . . Piercing . | . . . . . . . . . . . . . Highest Corruption 20 | . . . 1 1 1 1 1 20 2 2 2 7 Average Corruption 4 | . . . 1 1 1 1 1 11 2 2 2 7 Corruption Purged . | . . . . . . . . . . . . . Corruption Blocked . | . . . . . . . . . . . . . Effects 82 | . . . 2 10 3 6 2 50 1 6 2 . Message Errors 25 | . . . 1 2 . 2 . 18 . 1 1 . Matter Fused 19 | . . . 1 6 2 1 . 7 1 1 . . Heat Flow Errors 10 | . . . . . . 1 . 7 . 2 . . Energy Discharges 10 | . . . . 1 . 1 1 6 . 1 . . Data Loss (minor) 7 | . . . . . 1 . 1 4 . 1 . . Data Loss (major) 6 | . . . . 1 . 1 . 4 . . . . Misfires 1 | . . . . . . . . 1 . . . . Alerts 2 | . . . . . . . . 1 . . 1 . Misdirections 1 | . . . . . . . . 1 . . . . Weapon Failures 1 | . . . . . . . . 1 . . . . Overload Shots . | . . . . . . . . . . . . . Overflow Damage 338 | . 1 12 18 . . . 18 153 103 . . 33 Projectiles 122 | . . . . . . . . 122 . . . . Explosions 139 | . . 12 18 . . . 18 31 27 . . 33 Melee 77 | . 1 . . . . . . . 76 . . . Knockbacks 1 | . . . . . . . 1 . . . . . Impact 1 | . . . . . . . 1 . . . . . Kinetic . | . . . . . . . . . . . . . Secondary . | . . . . . . . . . . . . . Self-Inflicted Damage 508 | . 36 36 152 . . . 147 51 . . . 86 Shots 15 | . 1 1 3 . . . 3 2 . . . 5 Rammed 4 | . . . . 2 . 1 1 . . . . . Targets Rammed 19 | . 11 4 . 2 . 1 1 . . . . . Kicked 15 | . 11 4 . . . . . . . . . . Crushed . | . . . . . . . . . . . . . Highest Temperature 294 | 90 294 198 21 . . 247 63 273 11 195 . . Average Temperature 69 | 42 102 88 13 . . 124 20 61 5 66 . . Received Heat Transfer 1368 | . 240 72 69 15 . . 117 522 84 123 . 126 Effects 1 | . . . . . . . . 1 . . . . Interference 1 | . . . . . . . . 1 . . . . Siege Activations . | . . . . . . . . . . . . . Robots Corrupted 3 | . 1 . 2 . . . . . . . . . Combat Hostiles 1 | . . . 1 . . . . . . . . . Parts Fried 16 | . 3 . 6 . . . 6 1 . . . . Impact Corruptions 1 | . 1 . . . . . . . . . . . Robots Melted 1 | . . . . . . . . 1 . . . . Combat Hostiles 1 | . . . . . . . . 1 . . . . Parts Melted 16 | 1 . . 2 . . . . 6 4 2 . 1 Heat Transferred 6811 | 175 675 100 450 . . . 500 1631 1073 1037 . 1170 Parts Sabotaged . | . . . . . . . . . . . . . Parts Stolen . | . . . . . . . . . . . . . Parts Stripped . | . . . . . . . . . . . . . Power Chain Reactions 20 | . 2 1 8 . . . 5 4 . . . . Alert | -11 -10 -10 -9 -9 -9 -8 -8 -8 -7 -7 -7 -7 ------- Run | Yrd Mat Min Mat Min Exi Min Mat Gar Fac Sto Rec Scr Peak Influence 1032 | 10 173 53 531 175 . 83 417 1032 773 449 121 . Initial 541 | . 6 15 20 175 . . . 271 541 351 121 . Average 281 | 6 47 25 291 81 . 49 79 658 684 357 121 . Maximum Alert Level 3 | . . . 2 . . . 2 3 3 2 . . Low Security (%) 53 | 100 100 100 19 100 . 100 82 . . . 100 . Level 1 16 | . . . 52 . . . 13 22 . 73 . . Level 2 18 | . . . 28 . . . 3 45 40 26 . . Level 3 11 | . . . . . . . . 31 59 . . . Level 4 . | . . . . . . . . . . . . . Level 5 . | . . . . . . . . . . . . . High Security . | . . . . . . . . . . . . . Max Security . | . . . . . . . . . . . . . Squads Dispatched 9 | . . . 1 . . . 4 . 2 2 . . Investigation 1 | . . . . . . . . . . 1 . . Extermination 1 | . . . . . . . . . 1 . . . Reinforcement 5 | . . . 1 . . . 2 . 1 1 . . Assault . | . . . . . . . . . . . . . Garrison 2 | . . . . . . . 2 . . . . . Intercept . | . . . . . . . . . . . . . Searches Triggered . | . . . . . . . . . . . . . Construction Impeded 1 | . . . . . . . 1 . . . . . Haulers Reinforced 1 | . . . . . . . . . . 1 . . Active Scanning Responses . | . . . . . . . . . . . . . Cargo Convoy Interrupts . | . . . . . . . . . . . . . Stealth | -11 -10 -10 -9 -9 -9 -8 -8 -8 -7 -7 -7 -7 --------- Run | Yrd Mat Min Mat Min Exi Min Mat Gar Fac Sto Rec Scr Distress Signals 6 | . 2 . 1 . . . 1 . . 2 . . Communications Jammed . | . . . . . . . . . . . . . Distress Signals . | . . . . . . . . . . . . . Times Spotted 127 | . 21 4 23 3 . 1 18 26 15 10 . 6 Peak Tracking Total 13 | . 4 2 4 2 . 1 4 13 7 4 . 5 Tactical Retreats 6 | . 3 . . . . . 1 1 . 1 . . Traps | -11 -10 -10 -9 -9 -9 -8 -8 -8 -7 -7 -7 -7 ------- Run | Yrd Mat Min Mat Min Exi Min Mat Gar Fac Sto Rec Scr Traps Triggered 9 | . . . . . . . . 7 1 1 . . Indirectly . | . . . . . . . . . . . . . Trap Hack Attempts . | . . . . . . . . . . . . . Triggered . | . . . . . . . . . . . . . Disarmed . | . . . . . . . . . . . . . Reprogrammed . | . . . . . . . . . . . . . Reused . | . . . . . . . . . . . . . Traps Extracted . | . . . . . . . . . . . . . Installed . | . . . . . . . . . . . . . Triggered . | . . . . . . . . . . . . . Machines | -11 -10 -10 -9 -9 -9 -8 -8 -8 -7 -7 -7 -7 ---------- Run | Yrd Mat Min Mat Min Exi Min Mat Gar Fac Sto Rec Scr Machines Disabled 16 | . . . 9 . . . . . 5 2 . . Max in Single Turn 5 | . . . 5 . . . . . 1 1 . . Machines Repaired . | . . . . . . . . . . . . . Machines Dismantled . | . . . . . . . . . . . . . Machines Sabotaged . | . . . . . . . . . . . . . Overloaded Fab Kills . | . . . . . . . . . . . . . Hacking | -11 -10 -10 -9 -9 -9 -8 -8 -8 -7 -7 -7 -7 --------- Run | Yrd Mat Min Mat Min Exi Min Mat Gar Fac Sto Rec Scr Machines Accessed 30 | . 8 . 6 . 1 . 4 2 3 6 . . Terminals 24 | . 7 . 5 . . . 2 2 2 6 . . Fabricators 1 | . . . . . . . . . 1 . . . Repair Stations 2 | . . . 1 . . . 1 . . . . . Recycling Units 1 | . 1 . . . . . . . . . . . Scanalyzers . | . . . . . . . . . . . . . Garrison Access 1 | . . . . . . . 1 . . . . . Total Hacks 86 | . 19 . 23 . 1 . 8 5 17 13 . . Successful 42 | . 8 . 9 . 1 . 4 2 10 8 . . Failed 43 | . 11 . 14 . . . 4 3 6 5 . . Catastrophic 4 | . . . 2 . . . 1 1 . . . . Database Lockouts 1 | . . . . . . . . . 1 . . . Manual 31 | . 3 . 14 . 1 . . . 10 3 . . Terminals 75 | . 18 . 21 . . . 4 5 14 13 . . Fabricators 3 | . . . . . . . . . 3 . . . Repair Stations 5 | . . . 2 . . . 3 . . . . . Recycling Units 1 | . 1 . . . . . . . . . . . Scanalyzers . | . . . . . . . . . . . . . Garrison Access 1 | . . . . . . . 1 . . . . . Terminal Hacks 32 | . 7 . 6 . 1 . 2 2 6 8 . . Part Schematic 1 | . . . . . . . . . . 1 . . Robot Analysis 5 | . 1 . 2 . . . . . 1 1 . . Prototype ID Bank 7 | . 4 . 2 . . . . . 1 . . . Open Door 5 | . . . . . . . . 1 . 4 . . Branch Access Points 5 | . 1 . 1 . . . 1 . 1 1 . . Emergency Access Points 2 | . . . . . . . . 1 1 . . . Locate Traps 2 | . . . 1 . . . . . 1 . . . Hauler Manifests 2 | . . . . . . . 1 . . 1 . . Registered Components 1 | . . . . . . . . . 1 . . . Zone Layout 1 | . 1 . . . . . . . . . . . Derelict Proto ID Bank 1 | . . . . . 1 . . . . . . . Fabricator Hacks 3 | . . . . . . . . . 3 . . . Network Status 2 | . . . . . . . . . 2 . . . Build 1 | . . . . . . . . . 1 . . . Repair Station Hacks 3 | . . . 2 . . . 1 . . . . . Scan Component 2 | . . . 1 . . . 1 . . . . . Repair 1 | . . . 1 . . . . . . . . . Recycling Unit Hacks 1 | . 1 . . . . . . . . . . . Retrieve Components 1 | . 1 . . . . . . . . . . . Scanalyzer . | . . . . . . . . . . . . . Garrison Access Hacks 1 | . . . . . . . 1 . . . . . Unlock Access 1 | . . . . . . . 1 . . . . . Unauthorized Hacks 2 | . . . 1 . . . . . 1 . . . Terminals 2 | . . . 1 . . . . . 1 . . . Track 1 | . . . . . . . . . 1 . . . Operators 1 | . . . 1 . . . . . . . . . Fabricators . | . . . . . . . . . . . . . Repair Stations . | . . . . . . . . . . . . . Recycling Units . | . . . . . . . . . . . . . Scanalyzers . | . . . . . . . . . . . . . Garrison Access . | . . . . . . . . . . . . . Data Cores Recovered 2 | . 1 . 1 . . . . . . . . . Used 1 | . . . 1 . . . . . . . . . Hacking Detections 23 | . 7 . 5 . . . 4 . 3 4 . . Full Trace Events 2 | . . . 1 . . . 1 . . . . . Feedback Events 2 | . . . 1 . . . 1 . . . . . Corruption 2 | . . . 1 . . . 1 . . . . . Feedback Blocked . | . . . . . . . . . . . . . Robot Schematics Acquired . | . . . . . . . . . . . . . Robots Built 2 | . . . . . . . . . 2 . . . Authchips . | . . . . . . . . . . . . . Time 40 | . . . . . . . . . 40 . . . Total Robot Build Rating 2 | . . . . . . . . . 2 . . . Part Schematics Acquired 1 | . . . . . . . . . . 1 . . Parts Built . | . . . . . . . . . . . . . Authchips . | . . . . . . . . . . . . . Time . | . . . . . . . . . . . . . Total Part Build Rating . | . . . . . . . . . . . . . Parts Repaired 1 | . . . 1 . . . . . . . . . Time 26 | . . . 26 . . . . . . . . . Parts Recycled . | . . . . . . . . . . . . . Recycled Matter . | . . . . . . . . . . . . . Retrieved Matter . | . . . . . . . . . . . . . Retrieved Components 4 | . 4 . . . . . . . . . . . Parts Scanalyzed . | . . . . . . . . . . . . . Part Schematics Acquired . | . . . . . . . . . . . . . Parts Damaged . | . . . . . . . . . . . . . Bothacking | -11 -10 -10 -9 -9 -9 -8 -8 -8 -7 -7 -7 -7 ------------ Run | Yrd Mat Min Mat Min Exi Min Mat Gar Fac Sto Rec Scr Used RIF Installer . | . . . . . . . . . . . . . Robots Hacked . | . . . . . . . . . . . . . Non-combat . | . . . . . . . . . . . . . Combat . | . . . . . . . . . . . . . Robot Hacks Applied . | . . . . . . . . . . . . . Relay Couplers Released . | . . . . . . . . . . . . . Fabnet Peak Effective % . | . . . . . . . . . . . . . Robots Rewired 3 | . . . . . . . . 3 . . . . Allies Hacked . | . . . . . . . . . . . . . Hacks Repelled . | . . . . . . . . . . . . . Allies | -11 -10 -10 -9 -9 -9 -8 -8 -8 -7 -7 -7 -7 -------- Run | Yrd Mat Min Mat Min Exi Min Mat Gar Fac Sto Rec Scr Total Allies 10 | . . 2 . 3 . . . 3 2 . . . Largest Group 3 | . . 2 1 3 3 3 2 3 2 2 . . Highest-Rated Group 89 | . . 50 31 40 40 40 32 89 39 16 . . Highest-Rated Ally 39 | . . 31 31 16 16 16 16 39 39 8 . . Total Orders . | . . . . . . . . . . . . . Ally Attacks 58 | . . 2 5 . . 10 11 21 9 . . . Total Damage 876 | . . 32 85 . . 90 140 363 166 . . . Kills 12 | . . 1 . . . 4 2 5 . . . . Allies Corrupted . | . . . . . . . . . . . . . Allies Melted . | . . . . . . . . . . . . . Intel | -11 -10 -10 -9 -9 -9 -8 -8 -8 -7 -7 -7 -7 ------- Run | Yrd Mat Min Mat Min Exi Min Mat Gar Fac Sto Rec Scr Robot Analysis Total 5 | . 1 . 2 . . . . . 1 1 . . Derelict Logs Recovered 2 | . . 1 . 1 . . . . . . . . Drone Launches . | . . . . . . . . . . . . . Drone Recoveries . | . . . . . . . . . . . . . Exploration | -11 -10 -10 -9 -9 -9 -8 -8 -8 -7 -7 -7 -7 ------------- Run | Yrd Mat Min Mat Min Exi Min Mat Gar Fac Sto Rec Scr Turns Passed 14100 | 39 1425 756 941 1000 1111 658 622 1760 776 644 94 4274 Spaces Moved 6021 | 17 630 497 466 480 580 272 213 645 297 239 40 1645 Core . | . . . . . . . . . . . . . Treads 4803 | . . . 392 480 580 272 213 645 297 239 40 1645 Legs 1218 | 17 630 497 74 . . . . . . . . . Wheels . | . . . . . . . . . . . . . Hover . | . . . . . . . . . . . . . Flight . | . . . . . . . . . . . . . Fastest Speed 120 | 120 120 130 130 160 160 240 240 240 240 240 240 240 Average Speed 214 | 120 188 141 159 186 189 240 240 240 240 240 240 252 Slowest Speed 320 | 120 190 260 200 240 240 240 240 240 240 240 240 320 Overloaded Moves . | . . . . . . . . . . . . . Propulsion Burnouts . | . . . . . . . . . . . . . Robots Hopped . | . . . . . . . . . . . . . Cave-ins Triggered . | . . . . . . . . . . . . . Exploration Rate (%) 51 | 2 76 97 49 89 88 62 21 70 14 36 11 59 Regions Visited 12 Branch Regions 7 Pre-discovered Areas 2 | . . 1 . 1 . . . . . . . . Known Exits Taken 5 | . 1 . 1 . . . 1 . 1 1 . . Unknown Exits Taken 6 | 1 . 1 . 1 1 1 . . . . 1 . Scrap Searched 8 | . . 1 . 2 . 1 . . . . . 4 Spaces Dug 9 | . 2 . . . . . . 2 3 2 . . Terrain Destroyed 248 | . 14 6 46 . . . 32 56 11 3 . 80 Melee 5 | . . . . . . . . . 3 2 . . Projectile 6 | . 4 . . . . . . . 1 1 . . AOE 237 | . 10 6 46 . . . 32 56 7 . . 80 Terrain Rammed . | . . . . . . . . . . . . . Walls Destroyed . | . . . . . . . . . . . . . Machines Disabled . | . . . . . . . . . . . . . Actions | -11 -10 -10 -9 -9 -9 -8 -8 -8 -7 -7 -7 -7 --------- Run | Yrd Mat Min Mat Min Exi Min Mat Gar Fac Sto Rec Scr Total 6817 | 23 767 530 588 579 593 274 277 798 337 287 39 1725 Wait 264 | . 46 12 37 83 3 . 29 29 7 . . 18 Move 6008 | 16 629 496 465 479 579 271 213 642 296 238 39 1645 Hop . | . . . . . . . . . . . . . Pick Up 83 | . 17 1 16 1 3 . 8 11 8 9 . 9 Fast Attach 27 | 1 2 2 2 2 1 . 1 3 2 1 . 10 Attach 35 | . 2 . 5 . 1 . 3 16 3 . . 5 Detach 2 | . . . . . . . . 2 . . . . Swap 35 | . 6 4 3 2 1 1 1 2 5 5 . 5 Drop 63 | . 8 3 12 5 5 . 1 . 1 10 . 18 Fire 208 | 6 46 8 48 5 . 1 20 34 3 22 . 15 Melee 16 | . . . . . . . . 2 12 2 . . Ram . | . . . . . . . . . . . . . Kick 15 | . 11 4 . . . . . . . . . . Crush 4 | . . . . 2 . 1 1 . . . . . Escape Stasis 14 | . . . . . . . . 14 . . . . Rewire 43 | . . . . . . . . 43 . . . . Trap . | . . . . . . . . . . . . . Miscellaneous . | . . . . . . . . . . . . . Route ------- -11/Scrapyard -10/Materials (discovered 4 exits: *Mat x3 / *Min) -10/Mines (discovered 2 exits: *Mat x2) -9/Materials (discovered 2 exits: *Mat / *Min) -9/Mines (discovered 3 exits: *Mat x2 / *Exi) -9/Exiles -8/Mines -8/Materials -8/Garrison (discovered 3 exits: *Fac x3) -7/Factory (discovered 4 exits: *Sto x2 / Low x2) -7/Storage -7/Recycling -7/Scraptown (discovered 1 exit: [*Fac]) History --------- Turn | Location | Event 1 | -11/Scrapyard | Discovered new exit (range 3) 40 | -11/Scrapyard | Entered Materials 306 | -10/Materials | Build established: Mutant 573 | -10/Materials | Identified exit to Mines 602 | -10/Materials | Discovered new exit (range 10) 856 | -10/Materials | Discovered new exit (range 15) 1137 | -10/Materials | Discovered new exit (range 7) 1465 | -10/Materials | Entered Mines 1712 | -10/Mines | Discovered new exit (range 10) 1777 | -10/Mines | Found a damaged Exp. Sensor Array with a note attached 1780 | -10/Mines | Found Prototype Device 1998 | -10/Mines | Discovered new exit (range 10) 2221 | -10/Mines | Entered Materials 2221 | -9/Materials | Accompanied by 1 ally 2221 | -9/Materials | Evolved 2 slots: Utility x2 2226 | -9/Materials | Led the pair of lost Derelicts to an unsafe place 2307 | -9/Materials | Repaired Lgt. Armor Plating 2357 | -9/Materials | Identified exit to Mines 2571 | -9/Materials | Discovered new exit (range 9) 3162 | -9/Materials | Entered Mines 3163 | -9/Mines | Assembled infested the area 3333 | -9/Mines | Found a hidden stash of uninstalled traps 3394 | -9/Mines | Learned 2 Materials zone layouts 3508 | -9/Mines | Learned location of Storage (-7) 3576 | -9/Mines | Found DCF Scrap (13 items) 3766 | -9/Mines | Discovered new exit (range 8) 3922 | -9/Mines | Assisted by bots powering up and referring to "LRC-V3" 4087 | -9/Mines | Build established: Derelict-Mutant 4148 | -9/Mines | Deemed a non-threat by the Exiles lab entrance 4150 | -9/Mines | Discovered new exit (range 5) 4152 | -9/Mines | Discovered new exit (range 7) 4162 | -9/Mines | Entered Exiles 4162 | -9/Exiles | Accompanied by 3 allies 4220 | -9/Exiles | Met 8R-AWN 4247 | -9/Exiles | Met EX-HEX 4291 | -9/Exiles | Met EX-BIN 4314 | -9/Exiles | Aligned with FarCom system 4315 | -9/Exiles | Given EX-Vault access code 4354 | -9/Exiles | Opened EX-Vault 4392 | -9/Exiles | Warned to stay clear of 0b10 Research branches 4442 | -9/Exiles | Met EX-DEC 4507 | -9/Exiles | Visited The Gauntlet 5007 | -9/Exiles | Found XL Autogun Array 5013 | -9/Exiles | Found YOLO Cannon 5027 | -9/Exiles | Found AWS/Thermal 5104 | -9/Exiles | Build established: Mutant 5239 | -9/Exiles | Discovered new exit (range 15) 5273 | -9/Exiles | Stole three prototypes: AWS/Thermal, YOLO Cannon, XL Autogun Array 5273 | -9/Exiles | Entered Mines 5273 | -8/Mines | Accompanied by 3 allies 5912 | -8/Mines | Discovered new exit (range 9) 5931 | -8/Mines | Entered Materials 5931 | -8/Materials | Accompanied by 2 allies 5931 | -8/Materials | Evolved 2 slots: Propulsion x1, Weapon x1 6269 | -8/Materials | Build established: Tank 6399 | -8/Materials | Garrison activated, responded to threat 6500 | -8/Materials | Destroyed 9 combat bots 6553 | -8/Materials | Identified exit to Garrison 6553 | -8/Materials | Entered Garrison 6709 | -8/Garrison | Triggered checkpoint 6817 | -8/Garrison | Triggered checkpoint 6997 | -8/Garrison | Destroyed 7 combat bots 7005 | -8/Garrison | Lost 6 parts (1p1n2u2w) 7065 | -8/Garrison | Discovered new exit (range 11) 7121 | -8/Garrison | Triggered checkpoint 7246 | -8/Garrison | Build established: Mutant 7275 | -8/Garrison | System corruption reached 10% 7286 | -8/Garrison | Attempted to access garrison exit controls, blocked by remote lockdown 7287 | -8/Garrison | Core integrity fell below 50% 7342 | -8/Garrison | Lost 12 parts (1p6n2u3w) 7789 | -8/Garrison | Triggered checkpoint 7831 | -8/Garrison | Build established: Scavenger-Skirmisher 7900 | -8/Garrison | Discovered new exit (range 11) 7929 | -8/Garrison | Attempted to access garrison exit controls, blocked by remote lockdown 8107 | -8/Garrison | Triggered checkpoint 8163 | -8/Garrison | Triggered checkpoint 8291 | -8/Garrison | Discovered new exit (range 10) 8313 | -8/Garrison | Entered Factory 8313 | -7/Factory | Accompanied by 1 ally 8313 | -7/Factory | Evolved 2 slots: Utility x2 8315 | -7/Factory | FarCom data flow suspended 8439 | -7/Factory | Identified exit to Storage 8439 | -7/Factory | Identified exit to Lower Caves 8439 | -7/Factory | Central database locked down 8478 | -7/Factory | Build established: Scavenger-Mutant 8526 | -7/Factory | Destroyed 7 combat bots 8900 | -7/Factory | Fabricated R-06 Scavenger? 9089 | -7/Factory | Entered Storage 9089 | -7/Storage | Accompanied by 2 allies 9415 | -7/Storage | Found Prototype Launcher 9415 | -7/Storage | Identified Rocket Array 9419 | -7/Storage | Found Rocket Array 9473 | -7/Storage | Build established: Scavenger-Tank 9494 | -7/Storage | Identified exit to Recycling 9706 | -7/Storage | Found Rocket Array 9724 | -7/Storage | Used back door to open Recycling access 9733 | -7/Storage | Entered Recycling 9769 | -7/Recycling | Scanned before Scraplab entrance 9803 | -7/Recycling | Entered Scraplab 9822 | -7/Recycling | Discovered new exit (range 3) 9827 | -7/Recycling | Entered Scraptown 9827 | -7/Scraptown | System corruption cleaned by C-Scrubber 9834 | -7/Scraptown | System corruption cleaned by C-Scrubber 9976 | -7/Scraptown | Build established: Scavenger-Mutant 10440 | -7/Scraptown | Discovered new exit (range 5) 10541 | -7/Scraptown | Visited Comm Corps 10641 | -7/Scraptown | Visited Junk Repository 10704 | -7/Scraptown | Visited Shadow of the Wyrm 10826 | -7/Scraptown | Visited Symbiants 10857 | -7/Scraptown | Visited Supply Room 11296 | -7/Scraptown | Turned away by UFD registrar 11332 | -7/Scraptown | Visited Fellowship of the Rings 11371 | -7/Scraptown | Visited Assassins FH 13477 | -7/Scraptown | Build established: Scavenger-Tank 14049 | -7/Scraptown | Attacked by Scraptown defenders 14085 | -7/Scraptown | Core integrity fell below 50% 14089 | -7/Scraptown | Core integrity fell below 20% 14094 | -7/Scraptown | Destroyed Triborg 14101 | -7/Scraptown | Destroyed by C6-CZH(g) with Salvaging Laser Last Messages --------------- 14092_ Penetrated by Siege Slug. 14092_ Knocked back. 14092_ Penetrated by Siege Slug. 14093_ Acquired 15 matter. 14093_ Penetrated by Bolt. 14093_ Rocket Array destroyed. 14093_ Penetrated by Bolt. 14094_ Penetrated by Siege Slug. 14094_ Knocked back. 14094_ CPS modules swiftly deploy to protect Triborg components. 14094_ Triborg destroyed. 14097_ GH-YD3(x) destroyed. 14097_ Destroyed Airjet. 14098_ Bolt penetrates Earth. 14100_ The unstable cave ceiling collapses. 14100_ Z6-ER8(g) destroyed. 14101_ The unstable cave ceiling collapses. 14101_ Penetrated by Bolt. 14101_ Critical hit (Destroy). 14101_ Rocket Array destroyed. Map ----- +----------------------------------------------------+ | # ####?????????# #???????????????????? | | [#?????????# #???????????????????? | | # !!#?????????# #???????????????????? | | # ]#?????????# ###?#???????????????? | | # ####?????????# ""#"#???????????????? | | # !!#????????## """"#???????????????? | | # = #????????? ""###???????????????? | | #######???????? ###?????????????????? | | #?????????????? #####???????????????? | | #?????????????? # "???????????????? | | #??????????????## "???????????????? | | #??????????????? "???????????????? | | #?????????????? ! ! "???????????????? | | ############## !!%! "???????????????? | | ]! "???????????????? | | *!= "???????????????? | | "???????????????? | | "???????????????? | | "???????????????? | | % #"???????????????? | | [%[ #????????????????? | | !g % #????????????????? | | ####### ####### ####### ####????????????????? | | ## "#?# #???????????????????? | | "##! ] "#?# ##??????????????????? | | " ""##!! ""#?# @ #??????????????????? | | " ""##"|||| ""#?## ;#??????????????????? | | " ""##"""[[ [[#??# ##??????????????????? | | " ""#?"""[[ [[#??# #???????????????????? | | " " " ""#????######?? ??????????????????? | | """""X"""""#???????????? #?????????????????? | | """""""""""????????????? #?????????????????? | | ###########????????????? % #?????????????????? | | ???????????????????????? h ##?????????????????? | | ??????????????########## ?????????????????? | | ??????????????#"""""""""" # #????????????????? | | ??????????????#""""" """" #????????????????? | | ????????#######"""" " " #????????????????? | | ????????# ###????????????????? | | ###??#### #####"" "" "" ???????????????????? | | """"?#""" "#??#"""""""""" #???????????????????? | | " ""?#""" "#??#""""""""""" #???????????????????? | | " "?#""" "#??############ #???????????????????? | | ""##"" "#?############# #???????????????????? | | " ""##"" "#?#"""""""""""# #???????????????????? | | " ""##" "#?#"" [!! ! "# #???????????????????? | | " ""##" "#?#"" =][ "# #???????????????????? | | ""##"" "#?#"" [ "# #???????????????????? | | " ""##"" ""###"""["""""""# #???????????????????? | | #???????????????????? | +----------------------------------------------------+ Best States ------------- Heat Dissipation 56 Energy Generation 15 Energy Capacity 265 Matter Stores 300 Matter Capacity 300 Sight Range 16 Terrain Scan Density 10 Base Temperature (-) 100 Armor Coverage 600 Evasion (%) 55 Target Analysis 5 Recoil Reduction 3 Offensive Hacking 20 Item Schematics ----------------- Hrd. Heavy Armor Plating | -7/Storage | Hacked Robot Schematics ------------------ None Fabricated ------------ R-06 Scavenger | x2 | -7/Factory | Preloaded Alien Tech Used ----------------- None Achievements -------------- None Challenges ------------ None Game ------ Seed BraceRiotSystem Manual? 0 Play Time 01:06:42 Cumulative 270.8 hours Start 2024.10.15 @ 18:54:39 End 2024.10.15 @ 20:09:55 Sessions 1 Manual Loads 0 Difficulty Rogue Special Mode None Game No. 155 Rogue 155 Adventurer 0 Explorer 0 Win Type - Total 14 Types 3/2/6/1/1/0/1/0/0 Lore% 80 Gallery% 81 Achievement% 71 Wizard Run 0 Options --------- Layout 0 ASCII 0 Keyboard 0 Movement Arrows Keybinds 0 Fullscreen 2 Font 18/SmallcapsGlow Map View 76x50 Zoom Use 0% Tactical HUD 1 Map Filters NONE Filters NONE Steam 1 RUN: c7296086-58a6-406e-a4b2-b2018fbde0f3